fUST/lending_fUST_20250509
["ID","MTS","AMOUNT","RATE_DAILY","PERIOD"]
[360330316,1746744633662,-400.0,0.00010958,2]
[360330317,1746744633673,-453.93,0.00010958,2]
[360330318,1746744633682,-455.59,0.00010958,2]
[360330319,1746744633692,-400.0,0.00010958,2]
[360330320,1746744633702,-513.0,0.00010958,2]
[360330321,1746744633712,-465.46848686,0.00010958,2]
[360330322,1746744633721,-521.71,0.00010958,2]
[360330323,1746744633731,-400.0,0.00010958,2]
[360330324,1746744633741,-400.0,0.00010958,2]
[360330325,1746744633751,-400.0,0.00010958,2]
[360330326,1746744633760,-400.0,0.00010958,2]
[360330327,1746744633770,-400.0,0.00010958,2]
[360330328,1746744633780,-871.51,0.00010958,2]
[360330329,1746744633790,-400.0,0.00010958,2]
[360330330,1746744633800,-400.0,0.00010958,2]
[360330331,1746744633809,-892.34,0.00010958,2]
[360330332,1746744633819,-249.46214362,0.00010959,2]
[360330333,1746744633829,-400.0,0.00011232,2]
[360330334,1746744633839,-396.53,0.00011232,2]
[360330335,1746744633848,-400.0,0.00011232,2]
[360330336,1746744633858,-400.0,0.00011232,2]
[360330337,1746744633868,-400.0,0.00011232,2]
[360330338,1746744633878,-400.0,0.00011232,2]
[360330339,1746744633889,-508.97,0.00011232,2]
[360330340,1746744633898,-400.0,0.00011232,2]
[360330341,1746744633908,-357.07857335,0.00011232,2]
[360330342,1746744633918,-400.0,0.00011232,2]
[360330343,1746744633927,-400.0,0.00011232,2]
[360330344,1746744633937,-400.0,0.00011232,2]
[360330345,1746744633946,-299.38,0.00011232,2]
[360330346,1746744633959,-228.91,0.00011232,2]
[360330347,1746744633969,-871.51,0.00011232,2]
[360330348,1746744633979,-400.0,0.00011232,2]
[360330349,1746744633990,-400.0,0.00011232,2]
[360330350,1746744634000,-892.34,0.00011232,2]
[360330351,1746744634010,-500.0,0.00011317,2]
[360330352,1746744634019,-500.0,0.00011393,2]
[360330353,1746744634029,-500.0,0.00011393,2]
[360330354,1746744634039,-500.0,0.00011393,2]
[360330355,1746744634049,-500.0,0.00011393,2]
[360330356,1746744634058,-500.0,0.00011393,2]
[360330357,1746744634067,-500.0,0.00011429,2]
[360330358,1746744634080,-500.0,0.00011456,2]
[360330359,1746744634089,-500.0,0.00011456,2]
[360330360,1746744634099,-500.0,0.00011487,2]
[360330361,1746744634109,-500.0,0.00011492,2]
[360330362,1746744634119,-500.0,0.000115,2]
[360330363,1746744634128,-400.0,0.00011506,2]
[360330364,1746744634137,-344.63819532,0.00011506,2]
[360330365,1746744634148,-449.82,0.00011506,2]
[360330366,1746744634159,-238.27,0.00011506,2]
[360330367,1746744634169,-353.58,0.00011506,2]
[360330368,1746744634179,-400.0,0.00011506,2]
[360330369,1746744634189,-400.0,0.00011506,2]
[360330370,1746744634199,-400.0,0.00011506,2]
[360330371,1746744634209,-401.06859281,0.00011506,2]
[360330372,1746744634219,-871.51,0.00011506,2]
[360330373,1746744634229,-400.0,0.00011506,2]
[360330374,1746744634239,-400.0,0.00011506,2]
[360330375,1746744634249,-892.34,0.00011506,2]
[360330376,1746744634259,-500.0,0.00011564,2]
[360330377,1746744634269,-507.43167562,0.00011564,2]
[360330378,1746744634279,-400.0,0.0001178,2]
[360330379,1746744634289,-385.44,0.0001178,2]
[360330380,1746744634298,-400.0,0.0001178,2]
[360330381,1746744634308,-400.0,0.0001178,2]
[360330382,1746744634318,-871.51,0.0001178,2]
[360330383,1746744634328,-400.0,0.0001178,2]
[360330384,1746744634337,-400.0,0.0001178,2]
[360330385,1746744634347,-892.34,0.0001178,2]
[360330386,1746744634357,-420.0,0.00011833,2]
[360330387,1746744634367,-1147.0,0.00011843,2]
[360330388,1746744634377,-5093.37989092,0.000119,2]
[360330389,1746744634389,-98.18647266,0.000119,2]
[360330390,1746744634399,-400.0,0.00012054,2]
[360330391,1746744634409,-400.0,0.00012054,2]
[360330392,1746744634418,-400.0,0.00012054,2]
[360330393,1746744634428,-57.63146231,0.00012054,2]
[360330451,1746744640927,-813.87853769,0.00012054,2]
[360330453,1746744640936,-400.0,0.00012054,2]
[360330455,1746744640946,-400.0,0.00012054,2]
[360330457,1746744640958,-892.34,0.00012054,2]
[360330459,1746744640967,-1000.0,0.00012055,2]
[360330461,1746744640976,-189.85827677,0.00012295,2]
[360330463,1746744640986,-400.0,0.00012328,2]
[360330465,1746744640996,-400.0,0.00012328,2]
[360330467,1746744641005,-502.9,0.00012328,2]
[360330469,1746744641015,-871.51,0.00012328,2]
[360330471,1746744641024,-47.19202154,0.00012328,2]
[360330609,1746744646464,-352.80797846,0.00012328,2]
[360330610,1746744646474,-400.0,0.00012328,2]
[360330611,1746744646484,-275.09202154,0.00012328,2]
[360330645,1746745402101,10000.0,0.00030137,60]
[360330656,1746745446012,10000.0,0.00030137,60]
[360330657,1746745458077,10000.0,0.00030137,60]
[360330667,1746745489192,8000.0,0.00030137,60]
[360330710,1746745796055,250.0,0.00010163,2]
[360330732,1746745831848,-200.23518423,0.00010445,2]
[360330733,1746745831858,-500.0,0.00010445,2]
[360330734,1746745831869,-500.0,0.00010445,2]
[360330735,1746745831880,-355.97121483,0.00010445,2]
[360330736,1746745831894,-22.9291252,0.00010957,2]
[360330801,1746745840302,-978.0708748,0.00010957,2]
[360330802,1746745840313,-653.63,0.00010958,2]
[360330803,1746745840323,-400.0,0.00010958,2]
[360330804,1746745840333,-300.0,0.0001123,2]
[360330805,1746745840343,-380.54605904,0.00011231,2]
[360330806,1746745840352,-438.91357531,0.00011231,2]
[360330807,1746745840363,-233.5186855,0.00011231,2]
[360330808,1746745840373,-500.0,0.00011231,2]
[360330809,1746745840383,-436.25230399,0.00011231,2]
[360330810,1746745840392,-500.0,0.00011231,2]
[360330811,1746745840402,-500.0,0.00011231,2]
[360330812,1746745840411,-653.63,0.00011232,2]
[360330813,1746745840421,-400.0,0.00011232,2]
[360330814,1746745840431,-653.63,0.00011506,2]
[360330815,1746745840441,-400.0,0.00011506,2]
[360330816,1746745840451,-653.63,0.0001178,2]
[360330817,1746745840472,-400.0,0.0001178,2]
[360330818,1746745840484,-653.63,0.00012054,2]
[360330819,1746745840494,-400.0,0.00012054,2]
[360330820,1746745840504,-1000.0,0.00012055,2]
[360330821,1746745840513,-164.21011834,0.00012195,2]
[360330822,1746745840523,-362.19133297,0.00012273,2]
[360330823,1746745840532,-500.0,0.00012273,2]
[360330824,1746745840542,-500.0,0.00012273,2]
[360330825,1746745840551,-500.0,0.00012273,2]
[360330826,1746745840561,-500.0,0.00012273,2]
[360330827,1746745840571,-360.72500622,0.00012273,2]
[360330828,1746745840581,-500.0,0.00012273,2]
[360330829,1746745840590,-500.0,0.00012273,2]
[360330830,1746745840600,-500.0,0.00012273,2]
[360330831,1746745840610,-500.0,0.00012273,2]
[360330832,1746745840620,-500.0,0.00012273,2]
[360330834,1746745840629,-500.0,0.00012273,2]
[360330837,1746745840639,-500.0,0.00012273,2]
[360330838,1746745840648,-500.0,0.00012273,2]
[360330839,1746745840658,-500.0,0.00012273,2]
[360330840,1746745840667,-500.0,0.00012273,2]
[360330841,1746745840676,-1204.39296269,0.00012294,3]
[360331097,1746745843140,-1144.27303033,0.00012294,3]
[360331100,1746745843163,-630.24175968,0.00012221,2]
[360331102,1746745843172,-14432.61554794,0.00012294,3]
[360331106,1746745843207,-75030.4,0.00012294,3]
[360331360,1746745845869,-1535.41964536,0.00012171,2]
[360331362,1746745845880,-9895.08150465,0.00012294,3]
[360331364,1746745845890,-668.52399717,0.00012294,2]
[360332317,1746745856188,500.0,0.00030137,60]
[360332421,1746746047103,3419.39690808,0.00010205,2]
[360332422,1746746060419,10000.0,0.00030137,60]
[360332423,1746746070853,10000.0,0.00030137,60]
[360332424,1746746084796,10000.0,0.00030137,60]
[360332425,1746746093102,10000.0,0.00030137,60]
[360332426,1746746099475,10000.0,0.00030137,60]
[360332427,1746746106584,10000.0,0.00030137,60]
[360332428,1746746117010,10000.0,0.00030137,60]
[360332429,1746746122651,10000.0,0.00030137,60]
[360332430,1746746128665,10000.0,0.00030137,60]
[360332431,1746746136455,10000.0,0.00030137,60]
[360332461,1746746620368,1000.0,0.0003,120]
[360332480,1746746903977,2950.0,0.00030136,120]
[360332481,1746746920565,151.0,0.0002,120]
[360332486,1746746991777,308.41148522,0.0003,60]
[360332515,1746747031991,-633.4,0.00010245,2]
[360332516,1746747032000,-902.01964536,0.00010345,2]
[360332564,1746747038252,-97.98035464,0.00010345,2]
[360332565,1746747038262,-300.0,0.0001123,2]
[360332566,1746747038272,-517.46,0.00011231,2]
[360332567,1746747038282,-400.0,0.00011231,2]
[360332568,1746747038291,-400.0,0.00011231,2]
[360332569,1746747038301,-528.08,0.00011231,2]
[360332570,1746747038310,-400.0,0.00011231,2]
[360332571,1746747038320,-151.0,0.00011498,2]
[360332572,1746747038330,-500.0,0.00011503,2]
[360332573,1746747038340,-588.3376531,0.00011503,2]
[360332574,1746747038350,-500.0,0.00011503,2]
[360332576,1746747038360,-500.0,0.00011503,2]
[360332577,1746747038371,-500.0,0.00011503,2]
[360332578,1746747038382,-500.0,0.00011503,2]
[360332579,1746747038393,-500.0,0.00011503,2]
[360332580,1746747038403,-266.38224133,0.00011503,2]
[360332581,1746747038414,-307.23950272,0.00011503,2]
[360332582,1746747038425,-400.0,0.00011503,2]
[360332583,1746747038434,-400.0,0.00011503,2]
[360332584,1746747038443,-400.0,0.00011503,2]
[360332585,1746747038453,-50000.0,0.00011504,2]
[360332586,1746747038463,-400.0,0.00011504,2]
[360332587,1746747038472,-400.0,0.00011504,2]
[360332588,1746747038482,-400.0,0.00011504,2]
[360332589,1746747038492,-694.98,0.00011504,2]
[360332590,1746747038504,-400.0,0.00011504,2]
[360332591,1746747038513,-400.0,0.00011504,2]
[360332592,1746747038523,-206.0845718,0.00011505,2]
[360332593,1746747038532,-400.0,0.00011505,2]
[360332594,1746747038541,-400.0,0.00011505,2]
[360332595,1746747038551,-517.46,0.00011505,2]
[360332596,1746747038560,-400.0,0.00011505,2]
[360332597,1746747038569,-400.0,0.00011505,2]
[360332598,1746747038578,-400.0,0.00011778,2]
[360332599,1746747038587,-694.98,0.00011778,2]
[360332600,1746747038598,-194.81,0.00011779,2]
[360332601,1746747038607,-517.46,0.00011779,2]
[360332602,1746747038616,-521.9655057,0.00011779,2]
[360332603,1746747038625,-400.0,0.00011779,2]
[360332604,1746747038635,-473.87961593,0.00011873,2]
[360332605,1746747038645,-5212.52890099,0.000119,2]
[360332606,1746747038654,-186.0,0.00012,7]
[360332607,1746747038664,-489.0,0.00012,7]
[360332608,1746747038673,-305.0,0.00012,7]
[360332609,1746747038682,-412.0,0.00012,7]
[360332610,1746747038691,-350.0,0.00012,7]
[360332611,1746747038700,-489.0,0.00012,7]
[360332612,1746747038710,-242.0,0.00012,7]
[360332613,1746747038719,-202.0,0.00012,7]
[360332614,1746747038728,-210.0,0.00012,7]
[360332615,1746747038738,-400.0,0.00012052,2]
[360332616,1746747038750,-694.98,0.00012052,2]
[360332617,1746747038759,-517.46,0.00012053,2]
[360332618,1746747038769,-400.0,0.00012053,2]
[360332619,1746747038778,-1000.0,0.00012055,2]
[360332620,1746747038787,-500.0,0.00012173,2]
[360332621,1746747038796,-500.0,0.00012173,2]
[360332622,1746747038806,-500.0,0.00012173,2]
[360332623,1746747038815,-500.0,0.00012173,2]
[360332624,1746747038824,-500.0,0.00012173,2]
[360332625,1746747038835,-500.0,0.00012173,2]
[360332626,1746747038848,-500.0,0.00012173,2]
[360332627,1746747038858,-500.0,0.00012173,2]
[360332628,1746747038869,-500.0,0.00012173,2]
[360332629,1746747038880,-500.0,0.00012173,2]
[360332630,1746747038899,-500.0,0.00012173,2]
[360332631,1746747038909,-212.10144473,0.00012194,3]
[360332632,1746747038923,-50853.38152281,0.00012194,3]
[360332633,1746747038932,-30508.62692428,0.00012195,2]
[360332634,1746747039060,-11080.1563458,0.00012195,2]
[360332635,1746747039072,-6388.12986584,0.00012195,2]
[360332636,1746747039083,-10309.0,0.00012195,2]
[360332637,1746747039095,-1004.87,0.00012195,2]
[360332960,1746747043146,-372.59291433,0.00012195,2]
[360333629,1746747184109,747.0,0.00030137,60]
[360333632,1746747329566,184384.63,0.00030137,60]
[360333633,1746747392242,2500.0,0.00030137,60]
[360334659,1746748229297,-300.0,0.00010639,2]
[360334660,1746748229327,-300.0,0.00010639,2]
[360334661,1746748229370,-398.70418368,0.00010639,2]
[360334662,1746748229396,-24625.8176872,0.0001064,2]
[360334663,1746748229422,-400.0,0.00010958,2]
[360334664,1746748229446,-400.0,0.00010958,2]
[360334665,1746748229471,-529.002145,0.00010968,2]
[360334666,1746748229496,-400.0,0.00011232,2]
[360334667,1746748229520,-273.3582565,0.00011502,2]
[360334668,1746748229547,-215.06765191,0.00011502,2]
[360334669,1746748229575,-400.0,0.00011503,2]
[360334670,1746748229599,-400.0,0.00011503,2]
[360334671,1746748229625,-431.22,0.00011503,2]
[360334672,1746748229651,-400.0,0.00011503,2]
[360334673,1746748229677,-400.0,0.00011503,2]
[360334674,1746748229703,-400.0,0.00011503,2]
[360334675,1746748229728,-358.0,0.00011503,2]
[360334676,1746748229753,-400.0,0.00011503,2]
[360334677,1746748229779,-400.0,0.00011503,2]
[360334678,1746748229803,-153.70065138,0.00011504,2]
[360334679,1746748229827,-201.085639,0.00011506,2]
[360334680,1746748229850,-250.0,0.00011683,2]
[360334681,1746748229875,-420.0,0.00011695,2]
[360334682,1746748229901,-400.0,0.00011776,2]
[360334683,1746748229925,-400.0,0.00011776,2]
[360334684,1746748229951,-400.0,0.00011776,2]
[360334685,1746748229975,-608.11,0.00011776,2]
[360334686,1746748230002,-400.0,0.00011776,2]
[360334687,1746748230028,-400.0,0.00011777,2]
[360334688,1746748230052,-431.22,0.00011777,2]
[360334689,1746748230079,-250.7,0.00011777,2]
[360334690,1746748230104,-400.0,0.00011777,2]
[360334691,1746748230129,-358.0,0.00011777,2]
[360334692,1746748230158,-5066.26355557,0.000119,2]
[360334693,1746748230185,-400.0,0.0001205,2]
[360334694,1746748230211,-400.0,0.0001205,2]
[360334695,1746748230240,-608.11,0.0001205,2]
[360334696,1746748230264,-530.76029918,0.00012051,2]
[360334697,1746748230289,-431.22,0.00012051,2]
[360334698,1746748230313,-343.93947571,0.00012051,2]
[360334699,1746748230336,-358.0,0.00012051,2]
[360334700,1746748230359,-323.72476287,0.00012055,2]
[360334701,1746748230381,-500.0,0.00012073,2]
[360334702,1746748230405,-500.0,0.00012073,2]
[360334703,1746748230429,-500.0,0.00012073,2]
[360334704,1746748230452,-500.0,0.00012073,2]
[360334705,1746748230475,-572.76412884,0.00012073,2]
[360334706,1746748230499,-500.0,0.00012073,2]
[360334707,1746748230524,-458.84315832,0.00012073,2]
[360334708,1746748230548,-500.0,0.00012073,2]
[360334709,1746748230572,-500.0,0.00012073,2]
[360334710,1746748230596,-500.0,0.00012073,2]
[360334711,1746748230620,-500.0,0.00012073,2]
[360334712,1746748230645,-500.0,0.00012073,2]
[360334713,1746748230669,-212.10144473,0.00012094,3]
[360334714,1746748230693,-152.884301,0.00012094,2]
[360334715,1746748230720,-148637.40265911,0.00012094,2]
[360334740,1746748232057,-50000.0,0.00012073,2]
[360334742,1746748232067,-123425.38589332,0.00012094,2]
[360334744,1746748232076,-25426.6907614,0.00012094,3]
[360334746,1746748232085,-5482.39637328,0.00012095,2]
[360334750,1746748232130,-27197.45395846,0.00012095,2]
[360334770,1746748238306,-1174.95282108,0.00012095,2]
[360334771,1746748238324,-4077.54999925,0.00012095,2]
[360335758,1746748741299,500.0,0.00030137,60]
[360335759,1746748771079,24900.0,9.635e-05,2]
[360335769,1746748922699,2842.74,0.00030136,60]
[360335776,1746749371050,600.0,0.00030136,120]
[360335779,1746749406973,500.0,0.00030136,120]
[360335808,1746749432235,-602.20551545,0.00010438,2]
[360335810,1746749432245,-301.3831166,0.00010535,2]
[360335834,1746749432490,-898.6168834,0.00010535,2]
[360335837,1746749432501,-300.0,0.00010536,2]
[360335839,1746749432512,-300.0,0.00010536,2]
[360335840,1746749432521,-300.0,0.00010536,2]
[360335841,1746749432531,-300.0,0.00010536,2]
[360335842,1746749432540,-323.90214441,0.00010536,2]
[360335844,1746749432550,-273.3582565,0.00010536,2]
[360335846,1746749432561,-7644.99648586,0.00010537,2]
[360336087,1746749440924,-1056.20556976,0.00010537,2]
[360336790,1746749476776,350.90513,9.547e-05,2]
[360336794,1746749554153,529.002145,9.538e-05,2]
[360336795,1746749629819,200.450611,0.00030136,60]
[360336805,1746750078271,23125.9365152,9.537e-05,2]
[360336810,1746750228466,2887.9820759,9.462e-05,2]
[360336823,1746750501477,1000.0,0.00030137,60]
[360336866,1746750632273,-200.23518423,0.00010336,2]
[360336868,1746750632283,-809.46406622,0.00010373,2]
[360336870,1746750632293,-300.0,0.00010434,2]
[360336872,1746750632302,-1200.0,0.00010434,2]
[360336874,1746750632312,-47366.30699711,0.00010435,2]
[360336877,1746750632331,-2633.69300289,0.00010435,2]
[360336879,1746750632340,-587.47310643,0.00010435,2]
[360336881,1746750632350,-500.0,0.00010435,2]
[360336882,1746750632360,-500.0,0.00010435,2]
[360336884,1746750632370,-500.0,0.00010435,2]
[360336886,1746750632379,-500.0,0.00010435,2]
[360336888,1746750632389,-159.11527161,0.00010435,2]
[360336890,1746750632399,-500.0,0.00010435,2]
[360336892,1746750632409,-500.0,0.00010435,2]
[360336894,1746750632419,-500.0,0.00010435,2]
[360336896,1746750632429,-500.0,0.00010435,2]
[360336898,1746750632438,-500.0,0.00010435,2]
[360336900,1746750632447,-195.65001784,0.00010435,2]
[360336902,1746750632457,-500.0,0.00010435,2]
[360336903,1746750632466,-500.0,0.00010435,2]
[360336904,1746750632475,-500.0,0.00010435,2]
[360336905,1746750632485,-500.0,0.00010435,2]
[360336907,1746750632495,-609.4050625,0.00010435,2]
[360336909,1746750632504,-468.17660949,0.00010435,2]
[360336911,1746750632516,-31.82339051,0.00010435,2]
[360336913,1746750632526,-500.0,0.00010435,2]
[360336915,1746750632535,-500.0,0.00010435,2]
[360336917,1746750632544,-500.0,0.00010435,2]
[360336919,1746750632555,-500.0,0.00010435,2]
[360336921,1746750632564,-500.0,0.00010435,2]
[360336922,1746750632573,-500.0,0.00010435,2]
[360336923,1746750632583,-268.1918598,0.00010435,2]
[360336924,1746750632592,-500.0,0.00010435,2]
[360336926,1746750632603,-500.0,0.00010435,2]
[360336928,1746750632613,-500.0,0.00010435,2]
[360336945,1746750632781,-500.0,0.00010435,2]
[360336946,1746750632835,-500.0,0.00010435,2]
[360336947,1746750632844,-500.0,0.00010435,2]
[360336948,1746750632854,-500.0,0.00010435,2]
[360336949,1746750632864,-500.0,0.00010435,2]
[360336950,1746750632873,-500.0,0.00010435,2]
[360336951,1746750632882,-500.0,0.00010435,2]
[360336952,1746750632891,-500.0,0.00010435,2]
[360336953,1746750632900,-500.0,0.00010435,2]
[360336954,1746750632909,-500.0,0.00010435,2]
[360336955,1746750632918,-500.0,0.00010435,2]
[360336956,1746750632927,-500.0,0.00010435,2]
[360336957,1746750632937,-226.73150109,0.00010435,2]
[360336958,1746750632946,-297.17426085,0.00010435,2]
[360336959,1746750632955,-478.298,0.00010436,2]
[360336960,1746750632964,-291775.46752308,0.00010438,2]
[360336995,1746750638498,-10580.03547488,0.00010438,2]
[360337347,1746750643533,-8930.97859287,0.00010438,2]
[360337556,1746750693898,-543.81397797,0.00010236,2]
[360337557,1746750701863,-456.18602203,0.00010236,2]
[360337558,1746750762094,-328.53680944,0.00010236,2]
[360337559,1746750776942,-47.73852596,0.00010236,2]
[360337562,1746750882608,500.0,0.00030137,60]
[360337578,1746751261874,14627.2,0.00030136,60]
[360337579,1746751313663,1000.0,0.00030137,60]
[360337581,1746751323902,1116.02,0.00030137,60]
[360337582,1746751331187,1000.0,0.0003,60]
[360337589,1746751513507,1000.0,0.0003,61]
[360337592,1746751590109,-151.27371776,0.00010238,2]
[360337593,1746751601850,-165.23255155,0.00010238,2]
[360337594,1746751602932,-165.23255155,0.00010238,2]
[360337596,1746751616899,-200.17512853,0.00010238,2]
[360337599,1746751631883,-39.76586089,0.00010238,2]
[360337600,1746751631904,-113.20965757,0.00010238,2]
[360337603,1746751646941,-204.0677483,0.00010238,2]
[360337604,1746751662455,-23.95329565,0.00010238,2]
[360337606,1746751682941,277.50520072,0.0001,2]
[360337611,1746751791676,2222.56825191,0.00030136,60]
[360337612,1746751795864,187.0,0.000301,60]
[360337618,1746751809586,187.0,0.000301,61]
[360337669,1746751832702,-300.0,0.00010336,2]
[360337672,1746751832711,-1147.0,0.00010336,2]
[360337675,1746751832721,-158.71205076,0.00010336,2]
[360337678,1746751832731,-208.02198259,0.00010336,2]
[360337681,1746751832740,-289.93389583,0.00010336,2]
[360337684,1746751832749,-376.81918598,0.00010336,2]
[360337687,1746751832758,-500.0,0.00010336,2]
[360337690,1746751832767,-500.0,0.00010336,2]
[360337693,1746751832776,-21625.25546328,0.00010337,2]
[360338538,1746751862216,2400.0,0.00030137,60]
[360338539,1746751866017,187.0,0.000301,62]
[360338541,1746751882614,187.0,0.000102,2]
[360338542,1746751936627,187.0,0.000102,2]
[360338547,1746752024269,188.0,0.000102,2]
[360338548,1746752043050,187.70201975,0.000102,2]
[360338552,1746752121188,250.0,0.00010138,2]
[360338554,1746752154581,921.46319056,0.00010138,2]
[360338561,1746752249254,702.26147404,0.00010138,2]
[360338562,1746752279653,-170.61535076,0.00010237,2]
[360338563,1746752283263,794.64,0.00030136,60]
[360338565,1746752372327,17209.5532895,9.309e-05,2]
[360338600,1746752564882,229.286155,9.309e-05,2]
[360338601,1746752565084,229.286155,9.355e-05,2]
[360338611,1746752754654,170.61535076,0.00010137,2]
[360338617,1746752935512,4989.34026352,0.00010137,2]
[360338619,1746752965319,543.22077808,0.00010173,2]
[360338620,1746752967297,543.22077804,0.00010189,2]
[360338621,1746752969328,543.22077804,0.00010205,2]
[360338622,1746752972666,-202.70512975,0.00010221,2]
[360338623,1746752982080,-300.0,0.00010221,2]
[360338640,1746753031815,-40.51564829,0.00010221,2]
[360338641,1746753031825,-232.93405755,0.00010235,2]
[360340708,1746753158175,7107.817714,9.296e-05,2]
[360340718,1746753337182,900.0,0.00030137,60]
[360340720,1746753386892,-250.0,0.00010231,2]
[360340723,1746753398050,250.0,0.00010131,2]
[360340729,1746753418080,-250.0,0.00010231,2]
[360340730,1746753432011,-309.06222297,0.00010231,2]
[360340731,1746753432034,-278.83008615,0.00010234,2]
[360340732,1746753432070,-162.96596765,0.00010234,2]
[360340733,1746753451584,-187.0,0.00010234,2]
[360340734,1746753461955,-54.7847564,0.00010234,2]
[360340735,1746753461979,-500.0,0.00010234,2]
[360340736,1746753462183,-27.77453412,0.00010234,2]
[360340737,1746753477984,-395.51755218,0.00010234,2]
[360340738,1746753491973,-35.4370992,0.00010234,2]
[360340739,1746753491998,-208.08045298,0.00010234,2]
[360340740,1746753507485,-91.91954702,0.00010234,2]
[360340741,1746753507507,-70.95738834,0.00010235,2]
[360340742,1746753522657,-202.0394268,0.00010235,2]
[360340743,1746753537002,-278.99657704,0.00010235,2]
[360340744,1746753551844,-300.0,0.00010234,2]
[360340745,1746753551866,-256.58266515,0.00010235,2]
[360340746,1746753566923,-162.06776293,0.00010235,2]
[360340747,1746753577122,718.65042808,0.00010134,2]
[360340749,1746753581905,-229.35617974,0.00010235,2]
[360340750,1746753581931,-51.99339218,0.00010235,2]
[360340753,1746753597097,-250.0,0.00010235,2]
[360340754,1746753611855,-300.0,0.00010234,2]
[360340755,1746753626923,-201.01492869,0.00010234,2]
[360340756,1746753627475,181.07359268,0.00010137,2]
[360340757,1746753629435,181.07359268,0.00010187,2]
[360340758,1746753641886,-147.98507131,0.00010234,2]
[360340759,1746753641908,-333.26918358,0.00010235,2]
[360340760,1746753644296,820.05964538,0.00010134,2]
[360340761,1746753656908,-218.74574511,0.00010235,2]
[360340762,1746753702107,888.9674076,9.33e-05,2]
[360340763,1746753707120,250.0,0.00010134,2]
[360340764,1746753738954,461.28992654,0.00010134,2]
[360340768,1746753782153,2924.0,0.00030137,60]
[360340770,1746753851873,-201.01492869,0.00010234,2]
[360340771,1746753851897,-1.53258783,0.00010234,2]
[360340772,1746753873293,3515.0,0.00030137,60]
[360340775,1746753923826,370000.0,0.00010135,2]
[360340790,1746753991873,370000.0,0.00010135,2]
[360340798,1746754054566,122046.39491357,0.00010135,2]
[360340807,1746754072229,41498.591698,0.00030137,60]
[360340815,1746754124799,15000.0,0.0003013,60]
[360340818,1746754146971,8000.0,0.0003013,60]
[360340894,1746754232646,-300.0,0.00010234,2]
[360340896,1746754232656,-262.11260873,0.00010234,2]
[360340898,1746754232666,-3778.72359938,0.00010235,2]
[360340900,1746754232677,-1115.51770175,0.00010235,2]
[360340906,1746754232725,-56858.24035334,0.00010235,2]
[360341032,1746754240652,-138.15303103,0.00010235,2]
[360341294,1746754243104,-282.88680009,0.00010235,2]
[360341660,1746754247010,3407.4488314,0.0003013,60]
[360341940,1746754249723,1052.54567734,0.00010135,2]
[360341948,1746754249796,500.0,0.00030137,60]
[360342566,1746754256712,500.0,0.00030137,60]
[360342635,1746754262000,263.7500711,0.00030137,60]
[360342648,1746754345450,200.0,0.00030137,60]
[360342655,1746754512535,3263.0,0.0003013,60]
[360342666,1746754654190,253.58527319,0.0003013,60]
[360342667,1746754680391,409.0,0.0003013,120]
[360342682,1746754819240,9498.3027153,0.0003013,60]
[360342692,1746754948112,216.27784696,0.00010145,2]